[Event "EYCC 2017"]
[Site "Mamaia"]
[Date "2017.09.07"]
[Round "3"]
[White "Maurizzi, Marc Andria"]
[Black "Sheka, Nikolay"]
[Result "1-0"]
[ECO "B27"]
[WhiteElo "1947"]
[BlackElo "1644"]
[Annotator "NA"]
[PlyCount "57"]
[EventDate "2017.??.??"]
[EventType "swiss"]
[EventCountry "ROU"]
[SourceTitle "playchess.com"]
[Source "ChessBase"]
[SourceQuality "1"]
[TimeControl "40/5400+30:1800+30"]

1. e4 {[%emt 0:00:00]} c5 {[%emt 0:00:07]} 2. Nf3 {[%emt 0:00:00]} g6 {[%emt 0:00:08]} 3. d4 {[%emt 0:00:00]} cxd4 {[%emt 0:00:07]} 4. Qxd4 {[%emt 0:00:00]} Nf6 {[%emt 0:00:06]} 5. Nc3 {[%emt 0:00:04]} Nc6 {[%emt 0:00:09]} 6. Qa4 {[%emt 0:00:10]} d6 {[%emt 0:02:36]} 7. e5 {[%emt 0:01:13]} dxe5 {[%emt 0:01:36]} 8. Nxe5 {[%emt 0:00:42]} Bd7 {[%emt 0:00:40]} 9. Nxd7 {[%emt 0:00:45]} Qxd7 {[%emt 0:00:08]} 10. Be3 {[%emt 0:00:19]} Bg7 {[%emt 0:01:06]} 11. Rd1 {[%emt 0:01:01]} Qc8 {[%emt 0:00:12]} 12. Be2 {[%emt 0:00:33]} O-O {[%emt 0:00:09]} 13. O-O {[%emt 0:01:01]} a6 {[%emt 0:02:26]} 14. Qb3 {[%emt 0:03:05]} b5 {[%emt 0:01:03]} 15. a4 {[%emt 0:03:20]} bxa4 {[%emt 0:04:30]} 16. Qxa4 {[%emt 0:09:58]} Ne5 {[%emt 0:05:50]} 17. Nd5 {[%emt 0:09:21]} Nxd5 {[%emt 0:04:18]} 18. Rxd5 {[%emt 0:00:27]} Qb7 {[%emt 0:00:49]} 19. Rfd1 {[%emt 0:06:09]} e6 {[%emt 0:01:39]} 20. Rd6 {[%emt 0:01:35]} Qxb2 {[%emt 0:01:14]} 21. f4 {[%emt 0:00:15]} f5 {[%emt 0:06:01]} 22. Bd4 {[%emt 0:01:33]} Nf3+ {[%emt 0:09:52]} 23. Bxf3 {[%emt 0:00:11]} Bxd4+ {[%emt 0:00:07]} 24. Qxd4 {[%emt 0:00:13]} Qxc2 {[%emt 0:00:46]} 25. Bxa8 {[%emt 0:00:26]} Rxa8 {[%emt 0:00:10]} 26. Rd8+ {[%emt 0:00:09]} Rxd8 {[%emt 0:00:06]} 27. Qxd8+ {[%emt 0:00:01]} Kg7 {[%emt 0:00:11]} 28. Rd7+ {[%emt 0:00:06]} Kh6 {[%emt 0:00:09]} 29. Qh4# 1-0

[Event "EYCC 2017"]
[Site "Mamaia"]
[Date "2017.09.07"]
[Round "3"]
[White "Can, Isil"]
[Black "Nguyen, Thao Nhi"]
[Result "1-0"]
[ECO "B02"]
[WhiteElo "1945"]
[BlackElo "1747"]
[Annotator "NA"]
[PlyCount "71"]
[EventDate "2017.??.??"]
[EventType "swiss"]
[EventCountry "ROU"]
[SourceTitle "playchess.com"]
[Source "ChessBase"]
[SourceQuality "1"]
[TimeControl "40/5400+30:1800+30"]

1. e4 {[%emt 0:00:00]} Nf6 {[%emt 0:00:05]} 2. e5 {[%emt 0:00:00]} Nd5 {[%emt 0:00:16]} 3. c4 {[%emt 0:00:00]} Nb6 {[%emt 0:00:17]} 4. d4 {[%emt 0:00:00]} d6 {[%emt 0:00:14]} 5. Nf3 {[%emt 0:00:21]} dxe5 {[%emt 0:00:14]} 6. Nxe5 {[%emt 0:00:34]} c6 {[%emt 0:01:07]} 7. Be3 {[%emt 0:08:26]} Bf5 {[%emt 0:02:37]} 8. Nc3 {[%emt 0:01:37]} N8d7 {[%emt 0:01:27]} 9. Nf3 {[%emt 0:13:43]} e6 {[%emt 0:02:31]} 10. Bd3 {[%emt 0:03:06]} Bxd3 {[%emt 0:16:37]} 11. Qxd3 {[%emt 0:00:45]} Be7 {[%emt 0:02:16]} 12. O-O {[%emt 0:07:57]} O-O {[%emt 0:01:36]} 13. a4 {[%emt 0:00:40]} Nf6 {[%emt 0:18:27]} 14. Ne5 {[%emt 0:05:13]} Nc8 {[%emt 0:13:43]} 15. Rad1 {[%emt 0:08:22]} Qc7 {[%emt 0:05:52]} 16. f4 {[%emt 0:02:42]} Rd8 {[%emt 0:07:17]} 17. Qe2 {[%emt 0:07:20]} Nd6 {[%emt 0:06:20]} 18. Rf3 {[%emt 0:03:31]} Nf5 {[%emt 0:01:01]} 19. g4 {[%emt 0:00:24]} Nxe3 {[%emt 0:02:02]} 20. Rxe3 {[%emt 0:03:20]} Nd7 {[%emt 0:00:33]} 21. Rh3 {[%emt 0:01:46]} Nxe5 {[%emt 0:01:00]} 22. fxe5 {[%emt 0:00:29]} h6 {[%emt 0:02:35]} 23. Qf2 {[%emt 0:07:00]} c5 {[%emt 0:00:49]} 24. Rf1 {[%emt 0:05:51]} Bg5 {[%emt 0:00:06]} 25. Nb5 {[%emt 0:02:04]} Qe7 {[%emt 0:00:54]} 26. Nd6 {[%emt 0:01:12]} Rd7 {[%emt 0:00:06]} 27. dxc5 {[%emt 0:01:07]} Rad8 {[%emt 0:00:41]} 28. Rf3 {[%emt 0:01:14]} Bh4 {[%emt 0:00:51]} 29. Qe3 {[%emt 0:02:50]} Bg5 {[%emt 0:00:19]} 30. Qe4 {[%emt 0:01:11]} Rf8 {[%emt 0:01:10]} 31. Rxf7 {[%emt 0:01:53]} Rxf7 {[%emt 0:00:26]} 32. Rxf7 {[%emt 0:00:20]} Qd8 {[%emt 0:02:10]} 33. Qg6 {[%emt 0:07:00]} Rxf7 {[%emt 0:00:07]} 34. Qxf7+ {[%emt 0:00:06]} Kh8 {[%emt 0:00:34]} 35. b4 {[%emt 0:01:12]} Be7 {[%emt 0:02:31]} 36. Qxe6 {[%emt 0:03:01]} 1-0

[Event "EYCC 2017"]
[Site "Mamaia"]
[Date "2017.09.07"]
[Round "3"]
[White "Jakab, Kincso"]
[Black "Balajayeva, Khanim"]
[Result "1/2-1/2"]
[ECO "D00"]
[WhiteElo "1944"]
[BlackElo "2342"]
[Annotator "NA"]
[PlyCount "56"]
[EventDate "2017.??.??"]
[EventType "swiss"]
[EventCountry "ROU"]
[SourceTitle "playchess.com"]
[Source "ChessBase"]
[SourceQuality "1"]
[TimeControl "40/5400+30:1800+30"]

1. d4 {[%emt 0:00:00]} d5 {[%emt 0:00:05]} 2. Bf4 {[%emt 0:00:00]} e6 {[%emt 0:00:20]} 3. e3 {[%emt 0:00:32]} c5 {[%emt 0:02:20]} 4. c3 {[%emt 0:00:41]} Nc6 {[%emt 0:00:31]} 5. Nf3 {[%emt 0:01:14]} Nf6 {[%emt 0:00:08]} 6. Nbd2 {[%emt 0:00:31]} Bd6 {[%emt 0:00:32]} 7. Bg3 {[%emt 0:01:17]} Bxg3 {[%emt 0:05:34]} 8. hxg3 {[%emt 0:00:08]} Qd6 {[%emt 0:00:07]} 9. Bb5 {[%emt 0:01:48]} Bd7 {[%emt 0:02:47]} 10. Bxc6 {[%emt 0:05:03]} Bxc6 {[%emt 0:20:54]} 11. Ne5 {[%emt 0:01:36]} h6 {[%emt 0:02:18]} 12. g4 {[%emt 0:04:52]} Nd7 {[%emt 0:05:26]} 13. Ndf3 {[%emt 0:06:01]} f6 {[%emt 0:05:13]} 14. Nxd7 {[%emt 0:10:23]} Bxd7 {[%emt 0:00:36]} 15. g5 {[%emt 0:05:53]} O-O-O {[%emt 0:02:48]} 16. gxf6 {[%emt 0:03:18]} gxf6 {[%emt 0:00:03]} 17. dxc5 {[%emt 0:04:21]} Qxc5 {[%emt 0:00:03]} 18. Qd4 {[%emt 0:00:17]} Qxd4 {[%emt 0:00:16]} 19. cxd4 {[%emt 0:02:40]} Be8 {[%emt 0:04:27]} 20. Rh4 {[%emt 0:05:09]} Bg6 {[%emt 0:02:11]} 21. Ke2 {[%emt 0:01:14]} h5 {[%emt 0:09:32]} 22. Rf4 {[%emt 0:03:53]} Rhf8 {[%emt 0:02:06]} 23. Rh1 {[%emt 0:06:55]} Kd7 {[%emt 0:04:35]} 24. Nh4 {[%emt 0:01:17]} Bh7 {[%emt 0:00:47]} 25. Nf3 {[%emt 0:03:13]} Bg6 {[%emt 0:01:20]} 26. Nh4 {[%emt 0:05:11]} Bh7 {[%emt 0:03:00]} 27. Nf3 {[%emt 0:00:13]} Bg6 {[%emt 0:00:06]} 28. Nh4 {[%emt 0:00:15]} Bh7 {[%emt 0:01:36]} 1/2-1/2

[Event "EYCC 2017"]
[Site "Mamaia"]
[Date "2017.09.07"]
[Round "3"]
[White "Rozen, Eytan"]
[Black "Tsvetkov, Andrey"]
[Result "1/2-1/2"]
[ECO "B22"]
[WhiteElo "1932"]
[BlackElo "2219"]
[Annotator "NA"]
[PlyCount "60"]
[EventDate "2017.??.??"]
[EventType "swiss"]
[EventCountry "ROU"]
[SourceTitle "playchess.com"]
[Source "ChessBase"]
[SourceQuality "1"]
[TimeControl "40/5400+30:1800+30"]

1. e4 c5 2. c3 d5 3. exd5 Qxd5 4. d4 Nf6 5. Nf3 Bg4 6. Be2 e6 7. O-O Nc6 8. Be3 cxd4 9. Nxd4 Bxe2 10. Qxe2 Nxd4 11. Bxd4 Be7 12. Rd1 Qc6 13. Nd2 O-O 14. a4 a6 15. Qc4 Rac8 16. Qxc6 Rxc6 17. Nb3 Rd8 18. Na5 Rc7 19. Bb6 Rxd1+ 20. Rxd1 Rd7 21. Rxd7 Nxd7 22. Be3 b6 23. Nc6 Bd6 24. b4 e5 25. c4 f6 26. Bd2 Nb8 27. Nxb8 Bxb8 28. Be3 Bd6 29. b5 axb5 30. axb5 Bc7 1/2-1/2

[Event "EYCC 2017"]
[Site "Mamaia"]
[Date "2017.09.07"]
[Round "3"]
[White "Petkov, Momchil"]
[Black "Oglaza, Oskar"]
[Result "1/2-1/2"]
[ECO "A48"]
[WhiteElo "1920"]
[BlackElo "2198"]
[Annotator "NA"]
[PlyCount "117"]
[EventDate "2017.??.??"]
[EventType "swiss"]
[EventCountry "ROU"]
[SourceTitle "playchess.com"]
[Source "ChessBase"]
[SourceQuality "1"]
[TimeControl "40/5400+30:1800+30"]

1. d4 {[%emt 0:00:00]} Nf6 {[%emt 0:00:13]} 2. Nf3 {[%emt 0:00:00]} g6 {[%emt 0:00:07]} 3. Bf4 {[%emt 0:00:00]} Bg7 {[%emt 0:00:05]} 4. e3 {[%emt 0:00:00]} O-O {[%emt 0:00:21]} 5. Nbd2 {[%emt 0:00:01]} d6 {[%emt 0:01:28]} 6. h3 {[%emt 0:00:08]} c5 {[%emt 0:00:09]} 7. c3 {[%emt 0:00:19]} Nc6 {[%emt 0:00:18]} 8. Be2 {[%emt 0:03:00]} cxd4 {[%emt 0:00:23]} 9. exd4 {[%emt 0:02:50]} e5 {[%emt 0:01:39]} 10. dxe5 {[%emt 0:05:12]} dxe5 {[%emt 0:00:14]} 11. Nxe5 {[%emt 0:16:36]} Nd5 {[%emt 0:03:36]} 12. Nxc6 {[%emt 0:00:18]} bxc6 {[%emt 0:00:03]} 13. Bg3 {[%emt 0:01:29]} Re8 {[%emt 0:00:08]} 14. O-O {[%emt 0:00:57]} Bxc3 {[%emt 0:00:09]} 15. Nc4 {[%emt 0:09:59]} Bxb2 {[%emt 0:01:39]} 16. Nxb2 {[%emt 0:00:50]} Nc3 {[%emt 0:00:11]} 17. Qxd8 {[%emt 0:00:14]} Nxe2+ {[%emt 0:00:09]} 18. Kh2 {[%emt 0:00:04]} Rxd8 {[%emt 0:00:07]} 19. Be5 {[%emt 0:00:10]} Rd5 {[%emt 0:01:27]} 20. f4 {[%emt 0:01:23]} Ba6 {[%emt 0:01:15]} 21. Rad1 {[%emt 0:06:45]} Rad8 {[%emt 0:06:37]} 22. Rfe1 {[%emt 0:01:59]} c5 {[%emt 0:09:44]} 23. Rxd5 {[%emt 0:01:08]} Rxd5 {[%emt 0:00:26]} 24. Rd1 {[%emt 0:00:40]} Rxd1 {[%emt 0:04:35]} 25. Nxd1 {[%emt 0:00:28]} Bc4 {[%emt 0:01:25]} 26. a3 {[%emt 0:02:01]} Bb3 {[%emt 0:00:52]} 27. Nc3 {[%emt 0:00:26]} Nxc3 {[%emt 0:02:15]} 28. Bxc3 {[%emt 0:00:06]} Kf8 {[%emt 0:00:05]} 29. Kg3 {[%emt 0:00:18]} Ke7 {[%emt 0:00:22]} 30. Kf2 {[%emt 0:00:22]} Kd6 {[%emt 0:01:01]} 31. Ke3 {[%emt 0:00:15]} Kd5 {[%emt 0:00:05]} 32. g3 {[%emt 0:05:07]} Kc4 {[%emt 0:00:23]} 33. Bf6 {[%emt 0:01:23]} Ba4 {[%emt 0:01:21]} 34. Be7 {[%emt 0:03:01]} Kd5 {[%emt 0:00:30]} 35. Bf8 {[%emt 0:01:08]} Bb5 {[%emt 0:01:08]} 36. Be7 {[%emt 0:00:41]} Bf1 {[%emt 0:00:16]} 37. h4 {[%emt 0:00:16]} h5 {[%emt 0:00:52]} 38. Bf8 {[%emt 0:00:33]} Bh3 {[%emt 0:01:02]} 39. Be7 {[%emt 0:00:37]} Bf5 {[%emt 0:00:17]} 40. Bf8 {[%emt 0:00:00]} a5 {[%emt 0:00:42]} 41. Be7 {[%emt 0:01:17]} Kc4 {[%emt 0:00:53]} 42. Bf8 {[%emt 0:00:34]} Kb5 {[%emt 0:00:17]} 43. Kd2 {[%emt 0:00:42]} c4 {[%emt 0:00:45]} 44. Kc3 {[%emt 0:00:13]} Bd3 {[%emt 0:00:04]} 45. Kd4 {[%emt 0:00:41]} Kc6 {[%emt 0:00:21]} 46. Be7 {[%emt 0:02:20]} Kd7 {[%emt 0:00:14]} 47. Bc5 {[%emt 0:00:00]} Ke6 {[%emt 0:00:00]} 48. Bb6 {[%emt 0:00:05]} a4 {[%emt 0:00:00]} 49. Ba5 {[%emt 0:00:11]} Kf5 {[%emt 0:00:08]} 50. Ke3 {[%emt 0:00:06]} Kg4 {[%emt 0:00:15]} 51. Kf2 {[%emt 0:00:07]} Kf5 {[%emt 0:00:31]} 52. Ke3 {[%emt 0:00:00]} f6 {[%emt 0:00:15]} 53. Bc3 {[%emt 0:00:17]} g5 {[%emt 0:00:16]} 54. fxg5 {[%emt 0:00:05]} fxg5 {[%emt 0:00:06]} 55. hxg5 {[%emt 0:00:10]} Kxg5 {[%emt 0:00:08]} 56. Be5 {[%emt 0:00:21]} Kg4 {[%emt 0:00:07]} 57. Kd4 {[%emt 0:00:11]} Kf5 {[%emt 0:00:20]} 58. Bc7 {[%emt 0:00:06]} Ke6 {[%emt 0:00:24]} 59. Bb8 {[%emt 0:00:05] Kd5+} 1/2-1/2

[Event "EYCC 2017"]
[Site "Mamaia"]
[Date "2017.09.07"]
[Round "3"]
[White "Lehaci, Miruna-Daria"]
[Black "Beydullayeva, Govhar"]
[Result "1/2-1/2"]
[ECO "B24"]
[WhiteElo "1914"]
[BlackElo "2164"]
[Annotator "ChessBase"]
[PlyCount "135"]
[EventDate "2017.??.??"]
[EventType "swiss"]
[EventCountry "ROU"]
[SourceTitle "playchess.com"]
[Source "ChessBase"]
[SourceQuality "1"]
[TimeControl "40/5400+30:1800+30"]

1. e4 {[%emt 0:00:00]} c5 {[%emt 0:00:17]} 2. Nc3 {[%emt 0:00:00]} Nc6 {[%emt 0:00:07]} 3. Bb5 {[%emt 0:00:00]} Nd4 {[%emt 0:00:12]} 4. Bc4 {[%emt 0:00:00]} e6 {[%emt 0:00:10]} 5. Nge2 {[%emt 0:00:00]} a6 {[%emt 0:01:37]} 6. d3 {[%emt 0:08:06]} b5 {[%emt 0:03:22]} 7. Bb3 {[%emt 0:00:10]} Nxb3 {[%emt 0:08:47]} 8. axb3 {[%emt 0:00:07]} Bb7 {[%emt 0:00:16]} 9. e5 {[%emt 0:06:45]} Bxg2 {[%emt 0:06:56]} 10. Rg1 {[%emt 0:00:07]} Bb7 {[%emt 0:00:57]} 11. Ne4 {[%emt 0:09:46]} Bxe4 {[%emt 0:05:56]} 12. dxe4 {[%emt 0:00:05]} Qc7 {[%emt 0:05:02]} 13. Bf4 {[%emt 0:02:47]} Ne7 {[%emt 0:03:23]} 14. Qd6 {[%emt 0:11:41]} Qc8 {[%emt 0:08:57]} 15. Qd2 {[%emt 0:07:55]} Nc6 {[%emt 0:07:19]} 16. c4 {[%emt 0:05:00]} Qb7 {[%emt 0:06:27]} 17. f3 {[%emt 0:08:23]} bxc4 {[%emt 0:01:44]} 18. bxc4 {[%emt 0:00:05]} Qb4 {[%emt 0:00:29]} 19. Qc3 {[%emt 0:02:28]} g6 {[%emt 0:03:13]} 20. Bd2 {[%emt 0:06:36]} Qxc3 {[%emt 0:07:13]} 21. Bxc3 {[%emt 0:00:10]} Be7 {[%emt 0:00:54]} 22. Kf2 {[%emt 0:02:42]} O-O {[%emt 0:01:01]} 23. Rgd1 {[%emt 0:00:32]} Ra7 {[%emt 0:02:35]} 24. Rd2 {[%emt 0:00:46]} f6 {[%emt 0:02:28]} 25. Rad1 {[%emt 0:02:47]} fxe5 {[%emt 0:04:43]} 26. Rxd7 {[%emt 0:00:11]} Rxd7 {[%emt 0:01:29]} 27. Rxd7 {[%emt 0:00:06]} Bh4+ {[%emt 0:00:55]} 28. Kg2 {[%emt 0:02:30]} Nd4 {[%emt 0:00:37]} 29. Ng1 {[%emt 0:05:27]} Bg5 {[%emt 0:04:59]} 30. Ra7 {[%emt 0:02:47]} Be3 {[%emt 0:05:49]} 31. Rxa6 {[%emt 0:00:18]} Bxg1 {[%emt 0:05:26]} 32. Kxg1 {[%emt 0:00:05]} Rxf3 {[%emt 0:00:42]} 33. Bxd4 {[%emt 0:04:56]} exd4 {[%emt 0:00:05]} 34. Rxe6 {[%emt 0:00:06]} Rb3 {[%emt 0:00:49]} 35. Re5 {[%emt 0:04:21]} Rxb2 {[%emt 0:00:07]} 36. Rxc5 {[%emt 0:00:40]} d3 {[%emt 0:00:13]} 37. Rd5 {[%emt 0:00:07]} d2 {[%emt 0:01:37]} 38. Kf1 {[%emt 0:00:09]} Rc2 {[%emt 0:00:47]} 39. c5 {[%emt 0:01:48]} Rxc5 {[%emt 0:00:30]} 40. Rxd2 {[%emt 0:00:00]} Re5 {[%emt 0:00:05]} 41. Rd4 {[%emt 0:00:27]} Kg7 {[%emt 0:00:37]} 42. Kf2 {[%emt 0:00:40]} Kf6 {[%emt 0:02:15]} 43. Kf3 {[%emt 0:02:58]} Rh5 {[%emt 0:04:35]} 44. Kg3 {[%emt 0:01:11]} Ra5 {[%emt 0:01:00]} 45. Kf4 {[%emt 0:01:43]} Ra2 {[%emt 0:01:09]} 46. h4 {[%emt 0:03:00]} Rf2+ {[%emt 0:00:51]} 47. Kg3 {[%emt 0:00:17]} Rf1 {[%emt 0:01:58]} 48. Rd5 {[%emt 0:04:02]} h5 {[%emt 0:01:26]} 49. Rg5 {[%emt 0:08:41]} Rh1 {[%emt 0:01:32]} 50. e5+ {[%emt 0:00:40]} Kf7 {[%emt 0:00:05]} 51. e6+ {[%emt 0:02:09]} Kf6 {[%emt 0:00:49]} 52. Re5 {[%emt 0:03:36]} Ke7 {[%emt 0:00:15]} 53. Rg5 {[%emt 0:04:37]} Rg1+ {[%emt 0:00:34]} 54. Kf4 {[%emt 0:00:07]} Rf1+ {[%emt 0:00:04]} 55. Kg3 {[%emt 0:00:15]} Rf6 {[%emt 0:01:12]} 56. Re5 {[%emt 0:00:15]} Rf1 {[%emt 0:00:52]} 57. Rg5 {[%emt 0:00:39]} Ra1 {[%emt 0:01:07]} 58. Kf4 {[%emt 0:01:01]} Kf6 {[%emt 0:07:45]} 59. Re5 {[%emt 0:02:56]} Rf1+ {[%emt 0:00:43]} 60. Kg3 {[%emt 0:00:04]} Ke7 {[%emt 0:00:08]} 61. Rg5 {[%emt 0:00:12]} Rf6 {[%emt 0:01:04]} 62. Re5 {[%emt 0:00:06]} Rf5 {[%emt 0:01:24]} 63. Re1 {[%emt 0:00:36]} Ra5 {[%emt 0:00:35]} 64. Kf4 {[%emt 0:00:39]} Ra4+ {[%emt 0:04:35]} 65. Re4 {[%emt 0:00:51]} Ra3 {[%emt 0:01:09]} 66. Kg5 {[%emt 0:03:24]} Rg3+ {[%emt 0:00:51]} 67. Kh6 {[%emt 0:00:18]} Rg4 {[%emt 0:00:32]} 68. Re5 {[%emt 0:00:49]} 1/2-1/2

[Event "EYCC 2017"]
[Site "Mamaia"]
[Date "2017.09.07"]
[Round "3"]
[White "Valtemara, Mattia Angelo"]
[Black "Gombocz, Ferenc Jr"]
[Result "1/2-1/2"]
[ECO "C42"]
[WhiteElo "1910"]
[BlackElo "2106"]
[Annotator "NA"]
[PlyCount "115"]
[EventDate "2017.??.??"]
[EventType "swiss"]
[EventCountry "ROU"]
[SourceTitle "playchess.com"]
[Source "ChessBase"]
[SourceQuality "1"]
[TimeControl "40/5400+30:1800+30"]

1. e4 {[%emt 0:00:00]} e5 {[%emt 0:00:10]} 2. Nf3 {[%emt 0:00:00]} Nf6 {[%emt 0:00:18]} 3. Nxe5 {[%emt 0:00:07]} d6 {[%emt 0:00:08]} 4. Nf3 {[%emt 0:00:25]} Nxe4 {[%emt 0:00:11]} 5. Nc3 {[%emt 0:00:29]} Nf6 {[%emt 0:00:11]} 6. d4 {[%emt 0:01:02]} Be7 {[%emt 0:00:17]} 7. Be2 {[%emt 0:02:05]} O-O {[%emt 0:00:44]} 8. O-O {[%emt 0:01:29]} Re8 {[%emt 0:01:59]} 9. Re1 {[%emt 0:01:22]} Nbd7 {[%emt 0:01:06]} 10. h3 {[%emt 0:03:25]} b6 {[%emt 0:03:48]} 11. Bf4 {[%emt 0:02:48]} Bb7 {[%emt 0:00:34]} 12. Nh2 {[%emt 0:08:31]} Nf8 {[%emt 0:05:30]} 13. Bf3 {[%emt 0:02:47]} d5 {[%emt 0:00:29]} 14. Ne2 {[%emt 0:04:54]} Ne6 {[%emt 0:00:50]} 15. Be3 {[%emt 0:01:08]} Ne4 {[%emt 0:04:02]} 16. Ng3 {[%emt 0:08:37]} Nxg3 {[%emt 0:02:51]} 17. fxg3 {[%emt 0:00:19]} Bd6 {[%emt 0:00:23]} 18. Nf1 {[%emt 0:03:29]} Qf6 {[%emt 0:04:37]} 19. c3 {[%emt 0:03:30]} Ng5 {[%emt 0:02:34]} 20. Bxg5 {[%emt 0:08:03]} Qxg5 {[%emt 0:00:11]} 21. Kf2 {[%emt 0:05:28]} c6 {[%emt 0:04:20]} 22. Qc1 {[%emt 0:07:24]} Qg6 {[%emt 0:01:04]} 23. Qd2 {[%emt 0:01:28]} Ba6 {[%emt 0:02:57]} 24. Be2 {[%emt 0:05:42]} Bxe2 {[%emt 0:05:20]} 25. Rxe2 {[%emt 0:00:16]} Rxe2+ {[%emt 0:00:09]} 26. Qxe2 {[%emt 0:00:39]} Kf8 {[%emt 0:00:41]} 27. Re1 {[%emt 0:01:28]} f6 {[%emt 0:00:27]} 28. Qe6 {[%emt 0:02:02]} Rd8 {[%emt 0:00:19]} 29. Re2 {[%emt 0:02:26]} Qf7 {[%emt 0:00:55]} 30. Qxf7+ {[%emt 0:00:47]} Kxf7 {[%emt 0:00:09]} 31. g4 {[%emt 0:01:26]} Re8 {[%emt 0:00:34]} 32. Rxe8 {[%emt 0:01:01]} Kxe8 {[%emt 0:00:12]} 33. Ne3 {[%emt 0:01:02]} g6 {[%emt 0:00:33]} 34. b3 {[%emt 0:02:10]} Ke7 {[%emt 0:01:26]} 35. Kf3 {[%emt 0:02:08]} Ke6 {[%emt 0:02:45]} 36. c4 {[%emt 0:01:52]} Bb4 {[%emt 0:03:52]} 37. cxd5+ {[%emt 0:01:36]} cxd5 {[%emt 0:00:10]} 38. Ke2 {[%emt 0:01:38]} Bd6 {[%emt 0:05:00]} 39. Kf3 {[%emt 0:01:28]} Ba3 {[%emt 0:00:12]} 40. Nc2 {[%emt 0:00:00]} Bc1 {[%emt 0:00:46]} 41. Nb4 {[%emt 0:04:05]} Kd6 {[%emt 0:04:34]} 42. Nd3 {[%emt 0:01:47]} Bd2 {[%emt 0:00:10]} 43. Ke2 {[%emt 0:00:52]} Bc3 {[%emt 0:01:14]} 44. Ke3 {[%emt 0:00:12]} g5 {[%emt 0:02:13]} 45. Nf2 {[%emt 0:06:50]} Kc6 {[%emt 0:00:26]} 46. Kd3 {[%emt 0:00:45]} Be1 {[%emt 0:00:10]} 47. Nd1 {[%emt 0:00:37]} a6 {[%emt 0:05:10]} 48. Ne3 {[%emt 0:01:24]} Bg3 {[%emt 0:04:54]} 49. Nf5 {[%emt 0:00:55]} Bc7 {[%emt 0:00:13]} 50. Kc3 {[%emt 0:02:15]} Bd8 {[%emt 0:00:54]} 51. a3 {[%emt 0:03:47]} Bc7 {[%emt 0:01:36]} 52. a4 {[%emt 0:03:59]} Kd7 {[%emt 0:06:45]} 53. b4 {[%emt 0:01:43]} b5 {[%emt 0:04:38]} 54. a5 {[%emt 0:01:51]} Bf4 {[%emt 0:00:16]} 55. Nh6 {[%emt 0:03:31]} Bg3 {[%emt 0:01:39]} 56. Nf5 {[%emt 0:01:11]} Be1+ {[%emt 0:00:20]} 57. Kb3 {[%emt 0:00:25]} Bf2 {[%emt 0:00:51]} 58. Kc3 {[%emt 0:00:13]} 1/2-1/2

[Event "EYCC 2017"]
[Site "Mamaia"]
[Date "2017.09.07"]
[Round "3"]
[White "Radojicic, Aleksandar M"]
[Black "Kharitonov, Egor"]
[Result "1/2-1/2"]
[ECO "D30"]
[WhiteElo "1909"]
[BlackElo "2387"]
[Annotator "NA"]
[PlyCount "35"]
[EventDate "2017.??.??"]
[EventType "swiss"]
[EventCountry "ROU"]
[SourceTitle "playchess.com"]
[Source "ChessBase"]
[SourceQuality "1"]
[TimeControl "40/5400+30:1800+30"]

1. d4 {[%emt 0:00:00]} d5 {[%emt 0:00:07]} 2. c4 {[%emt 0:00:50]} e6 {[%emt 0:00:07]} 3. cxd5 {[%emt 0:01:16]} exd5 {[%emt 0:00:05]} 4. Nc3 {[%emt 0:01:37]} c6 {[%emt 0:00:09]} 5. Nf3 {[%emt 0:01:12]} Bf5 {[%emt 0:01:42]} 6. a3 {[%emt 0:14:10]} Bd6 {[%emt 0:03:34]} 7. Bg5 {[%emt 0:02:05]} f6 {[%emt 0:00:12]} 8. Bh4 {[%emt 0:02:08]} Ne7 {[%emt 0:00:13]} 9. e3 {[%emt 0:00:49]} O-O {[%emt 0:00:13]} 10. Bd3 {[%emt 0:01:06]} Nd7 {[%emt 0:10:21]} 11. Bg3 {[%emt 0:02:25]} Bxg3 {[%emt 0:01:29]} 12. hxg3 {[%emt 0:00:13]} Re8 {[%emt 0:09:10]} 13. b4 {[%emt 0:33:11]} a6 {[%emt 0:04:11]} 14. Nh4 {[%emt 0:07:28]} Bxd3 {[%emt 0:02:52]} 15. Qxd3 {[%emt 0:00:16]} Nf8 {[%emt 0:00:17]} 16. Na4 {[%emt 0:05:40]} Nc8 {[%emt 0:05:41]} 17. Nc5 {[%emt 0:04:36]} Nd6 {[%emt 0:01:10]} 18. Nf5 {[%emt 0:00:32]} 1/2-1/2

[Event "EYCC 2017"]
[Site "Mamaia"]
[Date "2017.09.07"]
[Round "3"]
[White "Dwilewicz, Katarzyna"]
[Black "Korchagina, Alena"]
[Result "1/2-1/2"]
[ECO "B41"]
[WhiteElo "1884"]
[BlackElo "2158"]
[Annotator "NA"]
[PlyCount "95"]
[EventDate "2017.??.??"]
[EventType "swiss"]
[EventCountry "ROU"]
[SourceTitle "playchess.com"]
[Source "ChessBase"]
[SourceQuality "1"]
[TimeControl "40/5400+30:1800+30"]

1. e4 {[%emt 0:00:00]} c5 {[%emt 0:00:08]} 2. Nf3 {[%emt 0:00:34]} e6 {[%emt 0:00:08]} 3. d4 {[%emt 0:00:13]} cxd4 {[%emt 0:00:05]} 4. Nxd4 {[%emt 0:00:06]} a6 {[%emt 0:00:05]} 5. c4 {[%emt 0:00:12]} Nf6 {[%emt 0:00:10]} 6. Nc3 {[%emt 0:00:11]} Qc7 {[%emt 0:00:05]} 7. Be3 {[%emt 0:00:43]} Be7 {[%emt 0:02:48]} 8. Be2 {[%emt 0:01:14]} O-O {[%emt 0:00:22]} 9. O-O {[%emt 0:00:56]} b6 {[%emt 0:00:25]} 10. f4 {[%emt 0:04:46]} d6 {[%emt 0:00:34]} 11. Rc1 {[%emt 0:00:53]} Bb7 {[%emt 0:12:38]} 12. Bf3 {[%emt 0:01:34]} Re8 {[%emt 0:01:41]} 13. b4 {[%emt 0:11:39]} Nbd7 {[%emt 0:00:39]} 14. Nd5 {[%emt 0:06:38]} exd5 {[%emt 0:18:55]} 15. cxd5 {[%emt 0:00:05]} Nc5 {[%emt 0:00:16]} 16. bxc5 {[%emt 0:01:02]} bxc5 {[%emt 0:00:40]} 17. Qd3 {[%emt 0:00:56]} Bf8 {[%emt 0:01:57]} 18. Nf5 {[%emt 0:00:49]} Qd8 {[%emt 0:18:05]} 19. Rfe1 {[%emt 0:02:59]} g6 {[%emt 0:03:00]} 20. Ng3 {[%emt 0:04:32]} Bc8 {[%emt 0:03:48]} 21. h3 {[%emt 0:07:31]} Bd7 {[%emt 0:02:36]} 22. Bd2 {[%emt 0:08:26]} Bb5 {[%emt 0:00:37]} 23. Qc2 {[%emt 0:00:15]} a5 {[%emt 0:03:54]} 24. Bc3 {[%emt 0:01:56]} Nd7 {[%emt 0:00:44]} 25. Ba1 {[%emt 0:10:47]} Rb8 {[%emt 0:04:20]} 26. a4 {[%emt 0:23:12]} Ba6 {[%emt 0:04:46]} 27. Qc3 {[%emt 0:00:25]} f6 {[%emt 0:00:08]} 28. Bg4 {[%emt 0:00:04]} Bg7 {[%emt 0:01:58]} 29. Be6+ {[%emt 0:00:05]} Kh8 {[%emt 0:00:15]} 30. e5 {[%emt 0:05:39]} fxe5 {[%emt 0:03:32]} 31. Ne4 {[%emt 0:01:32]} Qe7 {[%emt 0:09:11]} 32. Qxa5 {[%emt 0:01:28]} Bd3 {[%emt 0:05:08]} 33. Ng5 {[%emt 0:01:17]} h6 {[%emt 0:02:01]} 34. Nf7+ {[%emt 0:00:21]} Kh7 {[%emt 0:00:05]} 35. Qc7 {[%emt 0:00:58]} Nf8 {[%emt 0:00:54]} 36. Qxd6 {[%emt 0:01:13]} Nxe6 {[%emt 0:00:13]} 37. Qxe7 Rxe7 {[%emt 0:00:06]} 38. dxe6 {[%emt 0:01:36]} exf4 {[%emt 0:01:37]} 39. Rxc5 {[%emt 0:01:11]} Bxa1 {[%emt 0:00:36]} 40. Rxa1 {[%emt 0:00:00]} Kg7 {[%emt 0:00:42]} 41. Ne5 {[%emt 0:13:22]} Rb1+ {[%emt 0:16:34]} 42. Rxb1 {[%emt 0:00:02]} Bxb1 {[%emt 0:00:01]} 43. Rc6 {[%emt 0:00:34]} Ra7 {[%emt 0:01:44]} 44. Rc4 {[%emt 0:15:32]} Ba2 {[%emt 0:07:42]} 45. Rxf4 {[%emt 0:00:44]} Bxe6 {[%emt 0:00:06]} 46. Nd3 {[%emt 0:00:36]} Ra5 {[%emt 0:00:52]} 47. Kf2 {[%emt 0:00:56]} Bb3 {[%emt 0:02:36]} 48. Nb2 {[%emt 0:00:45]} 1/2-1/2